Cogmind - Beta 13 @@@ ROGUE MODE // 2024.04.26 @ 16:28:26 Player: e.v.o Result: Self-destructed Performance ------------- Evolutions (4) 2000 Regions Visited (10) 2000 Robots Destroyed (138) 690 Value Destroyed (4467) 4467 Prototype IDs (7) 140 Alien Tech Used (0) 0 Bonus (1271) 1271 TOTAL SCORE: 10568 Bonus ------- High Alert Combat Kills 396 Follower Combat Kills 75 Entered DSFs 500 Acquired ECA 300 Cogmind --------- Core Integrity 189/850 Matter 300/300 Energy 100/100 System Corruption 0% Temperature Cool (0) Movement Flying (40) Location -6/Lower Caves Parts ------- > --- POWER (1) -------- (None) > --- PROPULSION (5) --- Nuclear Pulse Thruster > --- UTILITY (6) ------ Improved Signal Interpreter Makeshift Salvage Targeting Computer Makeshift Salvage Targeting Computer Core Analyzer Power Shielding Improved System Shield > --- WEAPON (3) ------- Chainsword > --- INVENTORY (5) ---- Encrypted Comm Array Gauss Cannon Peak State ------------ > --- POWER ------------ Angular Momentum Engine > --- PROPULSION ------- Gravmag System Improved Gravmag System Improved Gravmag System Gravmag Array > --- UTILITY ---------- Improved Cooling System Medium Storage Unit Core Analyzer Force Field System Shield Improved Field Recycling Unit > --- WEAPON ----------- Enhanced Autogun Enhanced Autogun Heavy Flak Cannon > --- INVENTORY -------- Light Angular Momentum Engine Medium Treads Medium Treads Heavy Flak Cannon Heavy Flak Cannon Chainsword Chainsword [Rating: 66] Favorites ----------- Power Light Angular Momentum Engine Engine Light Angular Momentum Engine Power Core Light Fission Core Propulsion Armored Treads Treads Armored Treads Leg Aluminum Leg Hover Unit Gravmag System Flight Unit Flight Unit Utility Medium Storage Unit Device Improved Heat Sink Storage Medium Storage Unit Processor Advanced Visual Processing Unit Hackware Improved System Shield Protection Light Armor Plating Weapon Enhanced Autogun Energy Gun Beamcaster Ballistic Gun Enhanced Autogun Ballistic Cannon Assault Cannon Launcher Missile Launcher Special Weapon Mining Laser Slashing Weapon Chainsword Build | -11 -10 -9 -9 -8 -8 -7 -7 -6 -6 -6 ------- Run | Yrd Mat Mat Min Mat Sto Fac DSF Fac Low Low Slots Evolved 8 | . . 2 . 2 . 2 . 2 . . Power . | . . . . . . . . . . . Propulsion 3 | . . 2 . 1 . . . . . . Utility 4 | . . . . 1 . 1 . 2 . . Weapon 1 | . . . . . . 1 . . . . Parts Attached 152 | 6 13 20 6 17 21 2 13 33 14 7 Power 19 | 2 3 4 . 2 1 . 1 3 2 1 Engine 17 | 2 3 3 . 2 1 . 1 2 2 1 Core 2 | . . 1 . . . . . 1 . . Reactor . | . . . . . . . . . . . Propulsion 63 | 1 3 10 5 8 10 . 7 13 3 3 Treads 22 | . . . . . 9 . 7 6 . . Leg 7 | 1 3 . . . . . . . 3 . Wheel . | . . . . . . . . . . . Hover 13 | . . . . 5 1 . . 7 . . Flight 21 | . . 10 5 3 . . . . . 3 Utility 36 | 1 2 1 . 3 7 1 3 12 5 1 Device 18 | . . . . 1 3 1 1 10 2 . Storage 4 | 1 1 1 . . 1 . . . . . Processor 6 | . 1 . . 1 . . . 1 3 . Hackware 4 | . . . . . 1 . 2 1 . . Protection 4 | . . . . 1 2 . . . . 1 Artifact . | . . . . . . . . . . . Weapon 34 | 2 5 5 1 4 3 1 2 5 4 2 Energy Gun 3 | 1 . . . 1 . . . . 1 . Energy Cannon . | . . . . . . . . . . . Ballistic Gun 17 | 1 5 3 1 1 2 . 1 1 1 1 Ballistic Cannon 10 | . . 1 . 2 1 . 1 3 1 1 Launcher 1 | . . . . . . 1 . . . . Special Weapon 1 | . . 1 . . . . . . . . Impact Weapon . | . . . . . . . . . . . Slashing Weapon 2 | . . . . . . . . 1 1 . Piercing Weapon . | . . . . . . . . . . . Special Melee Weapon . | . . . . . . . . . . . Unidentified Prototypes 5 | . . 2 . 2 1 . . . . . Parts Lost 38 | . . 2 . . 5 . 7 6 12 6 Power 1 | . . . . . . . . . . 1 Propulsion 20 | . . 2 . . 3 . 3 4 5 3 Utility 9 | . . . . . 1 . 2 2 4 . Weapon 8 | . . . . . 1 . 2 . 3 2 Highest Loss Streak 6 | . . 2 . . 5 . 4 3 6 5 To Critical Strikes . | . . . . . . . . . . . Average Slot Usage (%) 90 | . 96 99 98 100 99 100 87 91 74 69 Engine 7 | . 14 8 . 9 9 7 6 5 4 5 Treads 16 | . . . . . 33 38 32 20 5 . Leg 4 | . 26 . . . . . . . 5 5 Hover 5 | . . . . 23 10 . . 8 1 . Flight 4 | . . 43 44 21 . . . . . 5 Device 6 | . . . . 1 4 15 6 13 13 . Storage 7 | . 16 11 11 9 9 7 7 5 . . Processor 10 | . 8 11 11 9 9 7 7 8 15 26 Hackware 2 | . . . . . . . 3 6 6 6 Protection 1 | . . . . 7 4 . . . . 1 Energy Gun 1 | . 4 . . 3 . . . . . 3 Ballistic Gun 10 | . 23 19 1 5 8 7 11 10 . 5 Ballistic Cannon 6 | . . 1 11 8 8 7 7 7 8 . Slashing Weapon 1 | . . . . . . . . 1 8 6 Naked Turns . | . . . . . . . . . . . Heaviest Build 58 | 13 33 16 16 23 32 44 44 58 31 26 Greatest Support 140 | 10 20 17 17 44 100 100 132 140 46 16 Greatest Overweight (x) 5 | 1 1 . . . 1 . . 2 1 5 Average Overweight (x) . | . . . . . . . . . . . Largest Inventory Capacity 15 | 8 15 8 8 8 10 10 10 10 5 5 Average Capacity 8 | 7 9 8 8 8 9 10 10 9 5 5 Most Carried 10 | 3 8 8 8 8 10 9 10 10 5 5 Average Carried 6 | 1 5 7 7 7 8 8 7 8 4 2 Final Capacity 10 | 8 8 8 8 8 10 10 10 5 5 5 Final Carried 10 | 3 8 7 8 8 10 8 7 5 3 2 Class Distribution -------------------- 46% | Mutant 14% | Gunner 9% | Scavenger-Sprinter 9% | Scavenger-Mutant 8% | Derelict-Mutant 7% | Skirmisher Dominant Class ---------------- Mutant | -10/Materials Scavenger-Sprinter | -9/Materials Scavenger-Sprinter | -9/Mines Mutant | -8/Materials Mutant | -8/Storage Mutant | -7/Factory Skirmisher | -7/DSF Gunner | -6/Factory Mutant | -6/Lower Caves Derelict-Mutant | -6/Lower Caves Resources | -11 -10 -9 -9 -8 -8 -7 -7 -6 -6 -6 ----------- Run | Yrd Mat Mat Min Mat Sto Fac DSF Fac Low Low Matter Collected 4632 | 240 248 629 97 98 1214 . 394 1221 393 98 Remotely . | . . . . . . . . . . . Salvage Created 4773 | . 440 710 89 36 1542 . 353 939 444 220 Parts 246 | . 27 43 11 5 79 . 16 43 11 11 Haulers Intercepted 9 | . . 2 . 1 6 . . . . . Recyclers Shooed 3 | . 1 . . . . . . 2 . . Parts Field Recycled . | . . . . . . . . . . . Retrieved Matter . | . . . . . . . . . . . Parts Self-Destructed 23 | . . . . . . . . . 11 12 Prevented . | . . . . . . . . . . . Kills | -11 -10 -9 -9 -8 -8 -7 -7 -6 -6 -6 ------- Run | Yrd Mat Mat Min Mat Sto Fac DSF Fac Low Low Combat Hostiles Destroyed 108 | . 7 16 5 . 35 . 10 19 10 6 Melee 5 | . . . . . . . 1 1 2 1 Guns 56 | . 7 16 . . 18 . 3 4 3 5 Cannons 43 | . . . 5 . 17 . 2 14 5 . AOE 4 | . . . . . . . 4 . . . Classes Destroyed 17 | . 7 2 . . 2 . 2 2 1 1 Worker 6 | . 1 . . . 5 . . . . . Tunneler 1 | . 1 . . . . . . . . . Hauler 9 | . . 2 . 1 6 . . . . . Recycler 4 | . 2 . 1 . . . . 1 . . Mechanic 1 | . . . . . 1 . . . . . Operator 4 | . 1 1 . . 1 . . 1 . . Watcher 5 | . 2 1 . . 1 . . 1 . . Swarmer 32 | . 2 7 5 . 6 . 4 3 . 5 Grunt 50 | . 5 5 . . 21 . 2 9 8 . Brawler 1 | . . . . . . . . . 1 . Duelist 1 | . . . . . . . . . . 1 Protector 2 | . . . . . 1 . . 1 . . Sentry 14 | . . 4 . . 7 . . 2 1 . Specialist 3 | . . . . . . . 3 . . . Hunter 2 | . . . . . . . . 2 . . Programmer 2 | . . . . . . . . 2 . . Heavy 1 | . . . . . . . 1 . . . Best Kill Streak 13 | . 5 8 3 1 13 . 4 7 3 3 Combat Bots Only 8 | . 3 7 3 . 8 . 4 6 3 3 Max Kills in Single Turn 4 | . 2 2 1 1 2 . 4 1 2 1 Gunslinging 1 | . . . . . . . . . 1 . Exploded 4 | . . . . . . . 4 . . . Melee 1 | . . . . . . . 1 1 1 1 Uniques/NPCs Destroyed . | . . . . . . . . . . . Combat | -11 -10 -9 -9 -8 -8 -7 -7 -6 -6 -6 -------- Run | Yrd Mat Mat Min Mat Sto Fac DSF Fac Low Low Hostile Shots Fired 791 | . 44 90 24 2 215 . 74 170 116 56 Missed 265 | . 13 36 7 . 65 . 17 62 48 17 Damage Taken 8166 | . 314 676 139 33 2077 . 1442 1394 1381 710 Core 1212 | . 107 157 12 18 126 . 131 112 194 355 Absorbed by Shields 393 | . . . . . 129 . 48 216 . . Redirected to Shielding 85 | . . . . . 85 . . . . . Core Remaining (%) 73 | 100 57 . 57 . 73 . 81 . . . Volleys Fired 348 | . 37 58 12 2 126 . 22 56 22 13 Largest 3 | . 2 2 2 2 2 . 3 3 2 2 Hottest 144 | . 60 46 144 67 105 . 105 106 110 98 Shots Fired 720 | . 72 116 19 4 247 . 50 156 38 18 Gun 452 | . 72 116 . 2 122 . 26 88 8 18 Cannon 258 | . . . 12 2 125 . 21 68 30 . Launcher 3 | . . . . . . . 3 . . . Special 7 | . . . 7 . . . . . . . Kinetic 685 | . 62 116 12 4 241 . 47 156 34 13 Thermal 32 | . 10 . 7 . 6 . . . 4 5 Explosive 3 | . . . . . . . 3 . . . Electromagnetic . | . . . . . . . . . . . Robot Hit Streak 11 | . 10 8 9 2 11 . 5 9 5 5 Robot Miss Streak 8 | . 3 7 8 2 8 . 2 8 7 2 Penetration Max . | . . . . . . . . . . . Secondary Targets 5 | . 1 1 . . . . . . 1 2 Max Gunslinging Chain 1 | . 1 1 . . . . . . 1 1 Shots Hit Robots 463 | . 45 63 6 2 145 . 29 102 47 24 Core Hits 313 | . 25 27 6 1 85 . 18 97 44 10 Critical Kills 1 | . . . . . . . . . 1 . Critical Parts Destroyed 2 | . . . . . 1 . . 1 . . Critical Strikes 14 | . . . . . 7 . 1 1 5 . Burn 3 | . . . . . 2 . . . 1 . Destroy 3 | . . . . . 1 . . 1 1 . Blast 5 | . . . . . 4 . 1 . . . Sever 3 | . . . . . . . . . 3 . Melee Attacks 39 | . . . . . . . . 1 19 19 Impact . | . . . . . . . . . . . Slashing 39 | . . . . . . . . 1 19 19 Piercing . | . . . . . . . . . . . Sneak Attacks . | . . . . . . . . . . . Combat Hostiles . | . . . . . . . . . . . Follow-up Attacks . | . . . . . . . . . . . Damage Inflicted 9964 | . 450 1044 166 42 3505 . 963 1938 1274 582 Guns 4479 | . 450 1044 . 18 1568 . 271 794 152 182 Cannons 4032 | . . . 142 24 1812 . 296 1101 657 . Explosions 513 | . . . . . 117 . 396 . . . Melee 906 | . . . . . . . . 41 465 400 Ramming 10 | . . . . . 8 . . 2 . . Kinetic 8223 | . 372 1044 142 42 3296 . 567 1895 725 140 Thermal 312 | . 78 . 24 . 84 . . . 84 42 Explosive 513 | . . . . . 117 . 396 . . . Electromagnetic . | . . . . . . . . . . . Impact . | . . . . . . . . . . . Slashing 906 | . . . . . . . . 41 465 400 Piercing . | . . . . . . . . . . . Highest Corruption 1 | . . . . . 1 . . . . . Average Corruption 1 | . . . . . 1 . . . . . Corruption Purged . | . . . . . . . . . . . Corruption Blocked . | . . . . . . . . . . . Effects 6 | . . . . . 6 . . . . . Message Errors 1 | . . . . . 1 . . . . . Matter Fused 1 | . . . . . 1 . . . . . Energy Discharges 2 | . . . . . 2 . . . . . Parts Fused 1 | . . . . . 1 . . . . . Data Loss (major) 1 | . . . . . 1 . . . . . Overload Shots . | . . . . . . . . . . . Overflow Damage 151 | . . . . . 62 . 16 4 37 32 Projectiles 32 | . . . . . 28 . . 4 . . Explosions 50 | . . . . . 34 . 16 . . . Melee 69 | . . . . . . . . . 37 32 Knockbacks 59 | . . . . . 19 . 4 32 4 . Impact . | . . . . . . . . . . . Kinetic 53 | . . . . . 16 . 4 29 4 . Secondary 6 | . . . . . 3 . . 3 . . Self-Inflicted Damage 58 | . . . . . 58 . . . . . Shots 1 | . . . . . 1 . . . . . Rammed 1 | . . . . . . . . 1 . . Targets Rammed 3 | . . . . . 1 . 1 1 . . Kicked . | . . . . . . . . . . . Crushed 2 | . . . . . 1 . 1 . . . Highest Temperature 753 | . 18 74 354 38 388 . 753 23 152 78 Average Temperature 87 | . 9 20 155 9 93 . 272 5 53 32 Received Heat Transfer 2453 | . 126 255 . 9 993 . 63 437 399 171 Effects 17 | . . . 1 . 4 . 12 . . . Shutdowns 3 | . . . . . 1 . 2 . . . Energy Bleed 3 | . . . 1 . 1 . 1 . . . Interference 5 | . . . . . 1 . 4 . . . Short Circuit 2 | . . . . . 1 . 1 . . . Damage (minor) 1 | . . . . . . . 1 . . . Damage (major) 3 | . . . . . . . 3 . . . Siege Activations . | . . . . . . . . . . . Robots Corrupted . | . . . . . . . . . . . Combat Hostiles . | . . . . . . . . . . . Parts Fried . | . . . . . . . . . . . Impact Corruptions . | . . . . . . . . . . . Robots Melted . | . . . . . . . . . . . Combat Hostiles . | . . . . . . . . . . . Parts Melted 1 | . . . . . 1 . . . . . Heat Transferred 854 | . 175 . 50 . 333 . . . 222 74 Parts Sabotaged . | . . . . . . . . . . . Parts Stolen . | . . . . . . . . . . . Parts Stripped . | . . . . . . . . . . . Power Chain Reactions . | . . . . . . . . . . . Alert | -11 -10 -9 -9 -8 -8 -7 -7 -6 -6 -6 ------- Run | Yrd Mat Mat Min Mat Sto Fac DSF Fac Low Low Peak Influence 723 | . 229 569 375 223 723 328 422 485 . . Initial 328 | . . 18 221 146 93 328 229 221 . . Average 282 | . 75 299 306 207 450 328 336 201 . . Maximum Alert Level 3 | . 1 2 1 1 3 1 2 2 . . Low Security (%) 33 | 100 94 42 . 18 6 . . 43 . . Level 1 31 | . 5 19 100 81 17 100 54 44 . . Level 2 33 | . . 38 . . 73 . 45 11 . . Level 3 1 | . . . . . 3 . . . . . Level 4 . | . . . . . . . . . . . Level 5 . | . . . . . . . . . . . High Security . | . . . . . . . . . . . Max Security . | . . . . . . . . . . . Sterilizations 1 | . . . . . . . 1 . . . Squads Dispatched 19 | . 2 2 . . 8 . 2 4 . 1 Investigation 7 | . 1 1 . . 3 . . 2 . . Extermination 2 | . . . . . . . . 2 . . Reinforcement 5 | . 1 1 . . 1 . 2 . . . Assault 3 | . . . . . 2 . . . . 1 Garrison 2 | . . . . . 2 . . . . . Intercept . | . . . . . . . . . . . Searches Triggered . | . . . . . . . . . . . Construction Impeded . | . . . . . . . . . . . Haulers Reinforced . | . . . . . . . . . . . Active Scanning Responses . | . . . . . . . . . . . Cargo Convoy Interrupts 1 | . . . . . . . . 1 . . Stealth | -11 -10 -9 -9 -8 -8 -7 -7 -6 -6 -6 --------- Run | Yrd Mat Mat Min Mat Sto Fac DSF Fac Low Low Distress Signals 3 | . 1 . . . 2 . . . . . Communications Jammed . | . . . . . . . . . . . Distress Signals . | . . . . . . . . . . . Times Spotted 164 | . 13 21 5 1 61 . 12 30 13 8 Peak Tracking Total 9 | . 4 7 3 . 6 . 5 8 4 9 Tactical Retreats 11 | . . 1 . . 2 . 2 3 1 2 Traps | -11 -10 -9 -9 -8 -8 -7 -7 -6 -6 -6 ------- Run | Yrd Mat Mat Min Mat Sto Fac DSF Fac Low Low Traps Triggered 1 | . . . . . 1 . . . . . Indirectly . | . . . . . . . . . . . Trap Hack Attempts . | . . . . . . . . . . . Triggered . | . . . . . . . . . . . Disarmed . | . . . . . . . . . . . Reprogrammed . | . . . . . . . . . . . Reused . | . . . . . . . . . . . Traps Extracted . | . . . . . . . . . . . Installed . | . . . . . . . . . . . Triggered 3 | . . . . . . . . 1 2 . Machines | -11 -10 -9 -9 -8 -8 -7 -7 -6 -6 -6 ---------- Run | Yrd Mat Mat Min Mat Sto Fac DSF Fac Low Low Machines Disabled 6 | . . 1 . . 4 . . 1 . . Max in Single Turn 1 | . . 1 . . 1 . . 1 . . Machines Repaired . | . . . . . . . . . . . Machines Dismantled . | . . . . . . . . . . . Machines Sabotaged . | . . . . . . . . . . . Overloaded Fab Kills . | . . . . . . . . . . . Hacking | -11 -10 -9 -9 -8 -8 -7 -7 -6 -6 -6 --------- Run | Yrd Mat Mat Min Mat Sto Fac DSF Fac Low Low Machines Accessed 21 | . 4 3 . 1 9 1 . 3 . . Terminals 17 | . 4 2 . 1 8 1 . 1 . . Fabricators 1 | . . . . . . . . 1 . . Repair Stations 2 | . . . . . 1 . . 1 . . Recycling Units 1 | . . 1 . . . . . . . . Scanalyzers . | . . . . . . . . . . . Garrison Access . | . . . . . . . . . . . Total Hacks 61 | . 10 5 . 2 26 5 . 13 . . Successful 24 | . 4 4 . 2 7 1 . 6 . . Failed 37 | . 6 1 . . 19 4 . 7 . . Catastrophic 6 | . . . . . 6 . . . . . Database Lockouts . | . . . . . . . . . . . Manual . | . . . . . . . . . . . Terminals 48 | . 10 4 . 2 23 5 . 4 . . Fabricators 5 | . . . . . . . . 5 . . Repair Stations 7 | . . . . . 3 . . 4 . . Recycling Units 1 | . . 1 . . . . . . . . Scanalyzers . | . . . . . . . . . . . Garrison Access . | . . . . . . . . . . . Terminal Hacks 17 | . 4 3 . 2 6 1 . 1 . . Part Schematic 2 | . . . . . 2 . . . . . Robot Analysis 1 | . . . . . 1 . . . . . Prototype ID Bank 1 | . . . . 1 . . . . . . Open Door 2 | . . . . . 2 . . . . . Open DSF 1 | . . . . . . 1 . . . . Emergency Access Points 1 | . . 1 . . . . . . . . Locate Traps 1 | . 1 . . . . . . . . . Transport Status 1 | . 1 . . . . . . . . . Hauler Manifests 4 | . 1 2 . . 1 . . . . . Registered Components 1 | . . . . 1 . . . . . . Zone Layout 2 | . 1 . . . . . . 1 . . Fabricator Hacks 4 | . . . . . . . . 4 . . Network Status 2 | . . . . . . . . 2 . . Load Schematic 1 | . . . . . . . . 1 . . Build 1 | . . . . . . . . 1 . . Repair Station Hacks 2 | . . . . . 1 . . 1 . . Scan Component 2 | . . . . . 1 . . 1 . . Recycling Unit Hacks 1 | . . 1 . . . . . . . . Report Inventory 1 | . . 1 . . . . . . . . Scanalyzer . | . . . . . . . . . . . Garrison Access Hacks . | . . . . . . . . . . . Unauthorized Hacks . | . . . . . . . . . . . Terminals . | . . . . . . . . . . . Fabricators . | . . . . . . . . . . . Repair Stations . | . . . . . . . . . . . Recycling Units . | . . . . . . . . . . . Scanalyzers . | . . . . . . . . . . . Garrison Access . | . . . . . . . . . . . Data Cores Recovered . | . . . . . . . . . . . Used . | . . . . . . . . . . . Hacking Detections 19 | . 4 2 . 1 8 1 . 3 . . Full Trace Events 10 | . 1 1 . . 6 . . 2 . . Feedback Events 1 | . . . . . 1 . . . . . Corruption 1 | . . . . . 1 . . . . . Feedback Blocked . | . . . . . . . . . . . Robot Schematics Acquired . | . . . . . . . . . . . Robots Built . | . . . . . . . . . . . Authchips . | . . . . . . . . . . . Time . | . . . . . . . . . . . Total Robot Build Rating . | . . . . . . . . . . . Part Schematics Acquired 2 | . . . . . 2 . . . . . Parts Built 1 | . . . . . . . . 1 . . Authchips . | . . . . . . . . . . . Time 84 | . . . . . . . . 84 . . Total Part Build Rating 4 | . . . . . . . . 4 . . Parts Repaired . | . . . . . . . . . . . Time . | . . . . . . . . . . . Parts Recycled . | . . . . . . . . . . . Recycled Matter . | . . . . . . . . . . . Retrieved Matter . | . . . . . . . . . . . Retrieved Components . | . . . . . . . . . . . Parts Scanalyzed . | . . . . . . . . . . . Part Schematics Acquired . | . . . . . . . . . . . Parts Damaged . | . . . . . . . . . . . Bothacking | -11 -10 -9 -9 -8 -8 -7 -7 -6 -6 -6 ------------ Run | Yrd Mat Mat Min Mat Sto Fac DSF Fac Low Low Used RIF Installer . | . . . . . . . . . . . Robots Hacked . | . . . . . . . . . . . Non-combat . | . . . . . . . . . . . Combat . | . . . . . . . . . . . Robot Hacks Applied . | . . . . . . . . . . . Relay Couplers Released . | . . . . . . . . . . . Fabnet Peak Effective % . | . . . . . . . . . . . Robots Rewired . | . . . . . . . . . . . Allies Hacked . | . . . . . . . . . . . Hacks Repelled . | . . . . . . . . . . . Allies | -11 -10 -9 -9 -8 -8 -7 -7 -6 -6 -6 -------- Run | Yrd Mat Mat Min Mat Sto Fac DSF Fac Low Low Total Allies 3 | . . . 1 . 2 . . . . . Largest Group 2 | . . . 1 1 2 . . . . . Highest-Rated Group 62 | . . . 31 31 62 . . . . . Highest-Rated Ally 31 | . . . 31 31 31 . . . . . Total Orders 1 | . . . . . . . 1 . . . EXPLORE 1 | . . . . . . . 1 . . . Ally Attacks 27 | . . . 5 1 21 . . . . . Total Damage 337 | . . . 43 21 273 . . . . . Kills 3 | . . . 1 1 1 . . . . . Allies Corrupted . | . . . . . . . . . . . Allies Melted . | . . . . . . . . . . . Intel | -11 -10 -9 -9 -8 -8 -7 -7 -6 -6 -6 ------- Run | Yrd Mat Mat Min Mat Sto Fac DSF Fac Low Low Robot Analysis Total 1 | . . . . . 1 . . . . . Derelict Logs Recovered 2 | . . . . . . . . . 2 . Drone Launches 2 | . . . . . . . 2 . . . Drone Recoveries 1 | . . . . . . . 1 . . . Exploration | -11 -10 -9 -9 -8 -8 -7 -7 -6 -6 -6 ------------- Run | Yrd Mat Mat Min Mat Sto Fac DSF Fac Low Low Turns Passed 5286 | 77 591 352 109 149 1348 13 360 1203 687 397 Spaces Moved 3262 | 44 344 420 83 149 752 5 173 710 297 285 Core 6 | 6 . . . . . . . . . . Treads 1186 | . . . . . 464 5 173 370 174 . Legs 628 | 38 344 . . . . . . . 123 123 Wheels . | . . . . . . . . . . . Hover 698 | . . . . 70 288 . . 340 . . Flight 744 | . . 420 83 79 . . . . . 162 Fastest Speed 28 | 50 120 31 31 28 42 166 152 48 120 34 Average Speed 109 | 153 132 31 31 35 121 166 158 112 185 107 Slowest Speed 445 | 190 190 31 31 48 250 166 166 225 225 445 Overloaded Moves . | . . . . . . . . . . . Propulsion Burnouts . | . . . . . . . . . . . Robots Hopped 2 | . . . 2 . . . . . . . Cave-ins Triggered . | . . . . . . . . . . . Exploration Rate (%) 38 | 4 47 29 15 11 85 . 93 17 43 36 Regions Visited 10 Branch Regions 4 Pre-discovered Areas 1 | . . . . . . . . . 1 . Known Exits Taken 5 | . 1 1 1 . . 1 . . 1 . Unknown Exits Taken 4 | 1 . . . 1 1 . . 1 . . Scrap Searched 5 | . . . . . . . . . 4 1 Spaces Dug 1 | . . . . . 1 . . . . . Terrain Destroyed 43 | . . . 5 1 21 . 14 . 2 . Melee . | . . . . . . . . . . . Projectile 23 | . . . 5 1 15 . . . 2 . AOE 20 | . . . . . 6 . 14 . . . Terrain Rammed . | . . . . . . . . . . . Walls Destroyed . | . . . . . . . . . . . Machines Disabled . | . . . . . . . . . . . Actions | -11 -10 -9 -9 -8 -8 -7 -7 -6 -6 -6 --------- Run | Yrd Mat Mat Min Mat Sto Fac DSF Fac Low Low Total 4320 | 51 419 549 132 244 968 10 226 1026 366 329 Wait 322 | . 2 25 29 48 24 4 2 180 6 2 Move 3248 | 43 343 419 78 148 751 4 172 709 296 285 Hop 2 | . . . 2 . . . . . . . Pick Up 91 | 2 11 10 . 13 21 . 7 21 4 2 Fast Attach 44 | 5 4 4 1 3 5 . 5 8 7 2 Attach 38 | . 2 4 . 5 5 2 4 8 5 3 Detach 1 | . . . . . . . . . 1 . Swap 70 | 1 7 12 5 9 11 . 4 17 2 2 Drop 111 | . 13 17 5 16 21 . 9 25 4 1 Fire 348 | . 37 58 12 2 126 . 22 56 22 13 Melee 39 | . . . . . . . . 1 19 19 Ram . | . . . . . . . . . . . Kick . | . . . . . . . . . . . Crush 3 | . . . . . 1 . 1 1 . . Escape Stasis 3 | . . . . . 3 . . . . . Rewire . | . . . . . . . . . . . Trap . | . . . . . . . . . . . Miscellaneous . | . . . . . . . . . . . Route ------- -11/Scrapyard -10/Materials (discovered 2 exits: *Mat / [*Min]) -9/Materials -9/Mines -8/Materials -8/Storage -7/Factory -7/DSF -6/Factory -6/Lower Caves -6/Lower Caves History --------- Turn | Location | Event 33 | -11/Scrapyard | Discovered new exit (range 15) 78 | -11/Scrapyard | Entered Materials 169 | -10/Materials | Discovered new exit (range 9) 311 | -10/Materials | Discovered new exit (range 12) 323 | -10/Materials | Build established: Mutant 406 | -10/Materials | Identified exit to Materials 669 | -10/Materials | Entered another Materials area 669 | -9/Materials | Evolved 2 slots: Propulsion x2 894 | -9/Materials | Destroyed 7 combat bots 975 | -9/Materials | Build established: Scavenger-Sprinter 976 | -9/Materials | Discovered new exit (range 12) 1009 | -9/Materials | Identified exit to Mines 1021 | -9/Materials | Entered Mines 1049 | -9/Mines | Escorted by a lone wolf Derelict 1108 | -9/Mines | Discovered new exit (range 5) 1128 | -9/Mines | Identified exit to Materials 1130 | -9/Mines | Entered Materials 1130 | -8/Materials | Accompanied by 1 ally 1130 | -8/Materials | Evolved 2 slots: Propulsion x1, Utility x1 1150 | -8/Materials | Discovered new exit (range 8) 1279 | -8/Materials | Entered Storage 1279 | -8/Storage | Accompanied by 1 ally 1485 | -8/Storage | Build established: Mutant 1486 | -8/Storage | Garrison activated, responded to threat 1593 | -8/Storage | Lost 5 parts (3n1u1w) 1992 | -8/Storage | Met a pair of Derelict thieves 2578 | -8/Storage | Garrison activated, responded to threat 2586 | -8/Storage | Discovered new exit (range 19) 2604 | -8/Storage | Destroyed 8 combat bots 2627 | -8/Storage | Entered Factory 2627 | -7/Factory | Evolved 2 slots: Utility x1, Weapon x1 2640 | -7/Factory | Identified exit to DSF 2640 | -7/Factory | Entered DSF 2664 | -7/DSF | Additional patrols routed to DSF 2844 | -7/DSF | Sterilization system engaged 2864 | -7/DSF | Ambient heat levels rising (+10) 2879 | -7/DSF | Ambient heat levels rising (+10) 2884 | -7/DSF | Lost 4 parts (3n1u) 2894 | -7/DSF | Ambient heat levels rising (+10) 2909 | -7/DSF | Ambient heat levels rising (+10) 2924 | -7/DSF | Ambient heat levels rising (+10) 2939 | -7/DSF | Ambient heat levels rising (+10) 2954 | -7/DSF | Ambient heat levels rising (+10) 2969 | -7/DSF | Ambient heat levels rising (+10) 2975 | -7/DSF | Discovered new exit (range 16) 2984 | -7/DSF | Ambient heat levels rising (+10) 2999 | -7/DSF | Ambient heat levels rising (+10) 3000 | -7/DSF | Entered Factory 3000 | -6/Factory | Evolved 2 slots: Utility x2 3474 | -6/Factory | Fabricated Imp. Field Recycling Unit? 3479 | -6/Factory | Build established: Gunner 3869 | -6/Factory | Discovered new exit (range 16) 4046 | -6/Factory | Cargo convoy interrupted 4160 | -6/Factory | Lost 3 parts (2n1u) 4203 | -6/Factory | Entered Lower Caves 4217 | -6/Lower Caves | Learned 8 Factory zone layouts 4228 | -6/Lower Caves | Learned Factory emergency access door positions 4325 | -6/Lower Caves | Met a Warlord Commander 4326 | -6/Lower Caves | Learned location of Warlord (-4) 4327 | -6/Lower Caves | Warlord Commander delivered Encrypted Comm Array 4339 | -6/Lower Caves | Found Encrypted Comm Array 4349 | -6/Lower Caves | Lost 6 parts (2n3u1w) 4600 | -6/Lower Caves | Build established: Mutant 4822 | -6/Lower Caves | Spotted B-75 Beast 4848 | -6/Lower Caves | Attracted the attention of an 0b10 checkpoint 4869 | -6/Lower Caves | Discovered new exit (range 12) 4888 | -6/Lower Caves | Identified exit to Lower Caves 4890 | -6/Lower Caves | Entered another Lower Caves area 4913 | -6/Lower Caves | Lost 5 parts (3n1u1w) 4973 | -6/Lower Caves | Encountered a Warlord checkpoint 5194 | -6/Lower Caves | Build established: Derelict-Mutant 5229 | -6/Lower Caves | Attracted the attention of an 0b10 outpost 5244 | -6/Lower Caves | Core integrity fell below 50% 5286 | -6/Lower Caves | Lost 5 parts (1p3n1w) 5287 | -6/Lower Caves | Self-destructed Last Messages --------------- DERELICT." 05231_ S-27 Virus destroyed. 05233_ Y-64 Sentinel: "REQUESTING BACKUP." 05235_ S-27 Virus destroyed. 05239_ Autogun fries itself beyond repair. 05242_ VTOL Module destroyed. 05243_ Autogun destroyed. 05243_ Mak. Power Source destroyed. 05248_ L-41 Fighter destroyed. 05249_ Arm. Leg destroyed. 05250_ VTOL Module fries itself beyond repair. 05254_ Core Shielding fries itself beyond repair. 05255_ Axe fries itself beyond repair. 05255_ VTOL Module destroyed. 05258_ Imp. Deuterium Engine fries itself beyond repair. 05272_ Critical hit (Burn: +37). 05282_ Destroyed Carbon-fiber Leg. 05285_ Penetrated by Slug. Map ----- +----------------------------------------------------+ | ?## #??# ## # ###??? | | ?# ##?# ## ##?? | | ?# ## ### ## ## #?? | | ?## ## #?## ## #?? | | ??# #### | | #### ### | | ##### ### | | #??## ##?? #### | | #???## ## ##??? ##??? | | #??######## ## ######???? #???? | | #?## ####### ## ## #????????? ???? | | #?? ## ##### #????????? ???? | | #??? ?# #???# #????????? ??? | | #??? ??# #???# #????????? ??? | | ##??? #??# #???## ????????? ?? | | ##???? # #??# #????### ??????? ?? | | #???? # #??#! #??????## ## ?????? ??? | | ##??? #% #??# %#???????## ## ##??????#????? | | #### #% #### !#????????# ####????????????? | | # ##????????## ##???????????????? | | # ###??####### ##????????????????? | | % %%#####* #### #?# ??????????????????? | | #### ##? ??????????????????? | | ### ### ##????????????????????? | | ### ##??####### g ?????????????????????? | | ### #??????????# @#??##??????????????????? | | ### #??????##### ### ##?????????????????? | | %#?## ##???#### Y % #?????????????????? | | #??# #????# % % #?????????????????? | | ##?# #???## ######## ##?????????????????? | | ### ##???# #""""""" ###??????????????????? | | % % ######## #" # ##????????????????????? | | ## #### #" ## #?????????????????????? | | # %## #??# #?????????????????????? | | ##%### #" # !?????????????????????? | | ?###?###### ### #" # ?????????????????????? | | ??????????#####?# ### ### !????????????????????? | | ????????????????# ?? !%????????????????????? | | ?????????????????### ??? #???????????????????? | | ???????????????????# ????#####???????????????????? | | ??????????????????? ????????????????????????????? | | ?????????????????? ?????????????????????????????? | | ????????????????? ??????????????????????????????? | | ???????????????? ???????????????????????????????? | | ?????????????????????????????????????????????????? | | ?????????????????????????????????????????????????? | | ?????????????????????????????????????????????????? | | ?????????????????????????????????????????????????? | | ?????????????????????????????????????????????????? | | ?????????????????????????????????????????????????? | +----------------------------------------------------+ Best States ------------- Heat Dissipation 79 Coolant Potential 50 Energy Generation 23 Energy Capacity 300 Matter Stores 300 Matter Capacity 300 Sight Range 20 Robot Scan Range 15 Terrain Scan Density 10 Armor Coverage 150 Power Shielding 33 Propulsion Shielding 66 Phase Shifting 5 Evasion (%) 64 Core Analysis 6 Recoil Reduction 5 Salvage Targeting 8 Offensive Hacking 10 Defensive Hacking 12 Item Schematics ----------------- Thermic Laser | -8/Storage | Hacked Imp. Field Recycling Unit | -8/Storage | Hacked Robot Schematics ------------------ None Fabricated ------------ Imp. Field Recycling Unit | x1 | -6/Factory Alien Tech Used ----------------- None Achievements -------------- None Challenges ------------ None Game ------ Seed CannonGrenadeCloak Manual? 0 Play Time 00:58:54 Cumulative 48.9 hours Start 2024.04.26 @ 15:31:51 End 2024.04.26 @ 16:28:26 Sessions 1 Manual Loads 0 Difficulty Rogue Special Mode None Game No. 78 Rogue 62 Adventurer 16 Explorer 0 Win Type - Total 0 Types 0/0/0/0/0/0/0/0/0 Lore% 16 Gallery% 35 Achievement% 26 Wizard Run 0 Options --------- Layout 2 ASCII 0 Keyboard 0 Movement Mouse Keybinds 0 Fullscreen 2 Font 24/Smallcaps Map View 50x44 Zoom Use 0% Tactical HUD 1 Map Filters NONE Filters NONE Steam 1 RUN: f7b9c810-1e05-42bd-ba42-d5041ec03c8c